fUSD/lending_fUSD_20251026
["ID","MTS","AMOUNT","RATE_DAILY","PERIOD"]
[392424390,1761460243093,-500.0,0.00036557,9]
[392424391,1761460243103,-500.0,0.00036557,9]
[392424392,1761460243112,-500.0,0.00036557,9]
[392424393,1761460243121,-500.0,0.00036557,9]
[392424394,1761460243130,-500.0,0.00036557,9]
[392424395,1761460243139,-500.0,0.00036557,9]
[392424396,1761460243149,-500.0,0.00036557,9]
[392424397,1761460243158,-226889.793313,0.00036558,4]
[392424398,1761460243167,-1193.7170385,0.00036559,2]
[392424399,1761460243176,-245.38077064,0.00036559,15]
[392424400,1761460243186,-382.51508768,0.00036566,15]
[392424401,1761460243195,-259.62035783,0.00036567,2]
[392424402,1761460243204,-298.77507839,0.00036567,2]
[392424403,1761460243213,-500.0,0.00036567,7]
[392424404,1761460243223,-500.0,0.00036567,9]
[392424405,1761460243232,-500.0,0.00036567,9]
[392424406,1761460243242,-500.0,0.00036567,9]
[392424407,1761460243251,-500.0,0.00036567,7]
[392424408,1761460243260,-152.89070277,0.00036567,20]
[392424409,1761460243270,-242.0,0.00036567,5]
[392424411,1761460243280,-317090.59870599,0.00036568,120]
[392424426,1761460243421,-1148.06,0.00036568,120]
[392424457,1761460432415,154.69379428,0.0003695,120]
[392424459,1761460490153,-186.59130604,0.00017411,2]
[392424460,1761460550416,-79.64869396,0.00017411,2]
[392424461,1761460550442,-108.76034572,0.00018328,2]
[392424462,1761460552302,-155.70831099,0.00018328,2]
[392424464,1761460606122,-1.77134329,0.00018328,2]
[392424465,1761460606149,-182.98089743,0.00019244,2]
[392424466,1761460640108,-83.25910257,0.00019244,2]
[392424467,1761460640130,-68.47144414,0.00019702,2]
[392424468,1761460685151,-181.52855586,0.00019702,2]
[392424469,1761460685174,-88.14593453,0.0002016,2]
[392424470,1761460730093,-178.09406547,0.0002016,2]
[392424471,1761460730115,-114.42961803,0.00021077,2]
[392424472,1761460732424,-151.81038197,0.00021077,2]
[392424473,1761460732449,-40.32205967,0.00021168,2]
[392424474,1761460734549,-189.53066395,0.00021168,2]
[392424475,1761460760111,-20.14727638,0.00021168,2]
[392424476,1761460760133,-195.0,0.00021168,2]
[392424477,1761460760155,-11.59703099,0.00021672,2]
[392424478,1761460764451,-174.58428065,0.00021672,2]
[392424486,1761461121004,-230.15815529,0.00017,2]
[392424487,1761461251179,924.09255113,0.00017,7]
[392424488,1761461286098,10000.0,0.000205,3]
[392424500,1761461431965,-19.84184471,0.00017,2]
[392424501,1761461431976,-266.24,0.00021993,2]
[392424502,1761461431986,-175.52095812,0.00022094,2]
[392424503,1761461432138,-54.63719717,0.00022094,2]
[392424504,1761461432148,-266.24,0.0002291,2]
[392424505,1761461432156,-266.24,0.00023826,2]
[392424506,1761461432166,-266.24,0.00024742,2]
[392424507,1761461432175,-266.24,0.00025659,2]
[392424508,1761461432185,-266.24,0.00026575,2]
[392424509,1761461432194,-266.24,0.00027492,2]
[392424510,1761461432204,-266.24,0.00028408,2]
[392424511,1761461432217,-266.24,0.00029324,2]
[392424512,1761461432226,-266.24,0.00030241,2]
[392424513,1761461432235,-192.03,0.00031,7]
[392424515,1761461432244,-266.24,0.00031157,2]
[392424517,1761461432254,-168.0,0.00031828,2]
[392424519,1761461432263,-168.0,0.0003183,2]
[392424521,1761461432271,-266.24,0.00032073,2]
[392424523,1761461432280,-168.0,0.00032114,2]
[392424525,1761461432289,-166.66,0.00032138,30]
[392424527,1761461432298,-168.0,0.00032644,2]
[392424528,1761461432307,-168.0,0.00032645,2]
[392424530,1761461432316,-168.0,0.00032793,2]
[392424532,1761461432325,-266.24,0.0003299,2]
[392424534,1761461432334,-163.0,0.00033,4]
[392424536,1761461432343,-765.29280283,0.00033177,2]
[392424537,1761461432354,-2807.68719717,0.00033177,2]
[392424539,1761461432363,-166.66,0.00033265,30]
[392424541,1761461432372,-309.82,0.00033394,2]
[392424542,1761461432382,-200.0,0.00033515,2]
[392424543,1761461432391,-250.0,0.00033536,2]
[392424544,1761461432400,-309.82,0.00033628,2]
[392424545,1761461432409,-157.97,0.00033698,120]
[392424546,1761461432419,-475.072,0.00033773,36]
[392424547,1761461432428,-168.0,0.00033773,2]
[392424548,1761461432436,-165.55,0.00033781,2]
[392424550,1761461432447,-999.0,0.000338,3]
[392424552,1761461432457,-309.82,0.00033862,2]
[392424553,1761461432467,-500.0,0.00033873,2]
[392424554,1761461432476,-266.24,0.00033906,2]
[392424555,1761461432485,-2053.0,0.00033907,2]
[392424556,1761461432494,-2483.5633844,0.00033907,2]
[392424558,1761461437915,-286.682272,0.00033907,2]
[392424560,1761461440175,-642.7543436,0.00033907,2]
[392424561,1761461440185,-1596.047,0.00033907,2]
[392424562,1761461440194,-223.94226913,0.00033907,2]
[392424563,1761461440206,-384.39673087,0.00033907,2]
[392424564,1761461440215,-875.91797243,0.00033907,2]
[392424565,1761461440225,-436.08202757,0.00033907,2]
[392424566,1761461440236,-387.64331376,0.00033907,2]
[392424567,1761461440249,-430.35668624,0.00033907,2]
[392424568,1761461440258,-686.04331376,0.00033907,2]
[392424569,1761461440403,-583.95668624,0.00033907,2]
[392424570,1761461440412,-208.0,0.00033907,2]
[392424571,1761461440423,-150.0,0.00033907,2]
[392424572,1761461440432,-200.0,0.00033907,2]
[392424573,1761461440442,-213.22,0.00033907,2]
[392424574,1761461440451,-203.668,0.00033907,2]
[392424575,1761461440460,-250.0,0.00033907,2]
[392424576,1761461440470,-151.371,0.00033907,2]
[392424577,1761461440480,-558.0,0.00033907,2]
[392424578,1761461440489,-168.0,0.00034003,2]
[392424579,1761461440499,-309.82,0.00034095,2]
[392424580,1761461440508,-168.0,0.00034147,2]
[392424581,1761461440518,-168.0,0.00034271,2]
[392424582,1761461440527,-309.82,0.00034329,2]
[392424583,1761461440538,-166.66,0.00034393,30]
[392424584,1761461440547,-168.0,0.00034472,2]
[392424585,1761461440556,-309.82,0.00034563,2]
[392424586,1761461440565,-309.82,0.00034797,2]
[392424587,1761461440575,-266.24,0.00034823,2]
[392424588,1761461440584,-500.0,0.00034923,7]
[392424589,1761461440593,-500.0,0.00034923,7]
[392424590,1761461440602,-168.0,0.00034947,2]
[392424591,1761461440611,-309.82,0.0003503,2]
[392424592,1761461440619,-309.82,0.00035264,2]
[392424593,1761461440628,-1645.70512473,0.00035469,2]
[392424594,1761461440637,-309.82,0.00035498,2]
[392424595,1761461440646,-166.66,0.0003552,30]
[392424596,1761461440655,-216.39116909,0.00035616,2]
[392424597,1761461440664,-309.82,0.00035732,2]
[392424598,1761461440673,-309.82,0.00035965,2]
[392424599,1761461440682,-309.82,0.00036199,2]
[392424600,1761461440693,-236.40343,0.000362,2]
[392424601,1761461440702,-827.00615599,0.00036368,7]
[392424602,1761461440712,-252.88371329,0.000364,2]
[392424603,1761461440720,-187.57305535,0.000364,2]
[392424604,1761461440730,-252.8837132,0.00036408,2]
[392424605,1761461440739,-252.8837132,0.00036415,2]
[392424606,1761461440748,-252.8837132,0.00036423,2]
[392424607,1761461440758,-252.8837132,0.0003643,2]
[392424608,1761461440769,-309.82,0.00036433,2]
[392424609,1761461440779,-252.8837132,0.00036438,2]
[392424610,1761461440788,-252.8837132,0.00036445,2]
[392424611,1761461440797,-1460.88286204,0.00036447,8]
[392424612,1761461440806,-811.28735622,0.00036447,2]
[392424613,1761461440815,-811.28735621,0.00036449,2]
[392424614,1761461440824,-811.28735621,0.00036452,2]
[392424615,1761461440833,-252.8837132,0.00036453,2]
[392424616,1761461440844,-811.28735621,0.00036454,2]
[392424617,1761461440853,-811.28735621,0.00036456,2]
[392424618,1761461440862,-150.0,0.00036458,2]
[392424619,1761461440871,-150.0,0.00036458,2]
[392424620,1761461440879,-500.0,0.00036458,2]
[392424621,1761461440888,-150.0,0.00036458,2]
[392424622,1761461440897,-500.0,0.00036458,2]
[392424623,1761461440906,-150.0,0.00036458,2]
[392424624,1761461440914,-150.0,0.00036458,2]
[392424625,1761461440923,-500.0,0.00036458,2]
[392424626,1761461440933,-150.0,0.00036458,2]
[392424627,1761461440941,-150.0,0.00036458,2]
[392424628,1761461440950,-150.0,0.00036458,2]
[392424629,1761461440959,-500.0,0.00036458,2]
[392424630,1761461440968,-151.33382109,0.00036458,2]
[392424631,1761461440977,-811.28735621,0.00036459,2]
[392424632,1761461440986,-500.0,0.00036459,15]
[392424633,1761461440995,-500.0,0.00036459,15]
[392424634,1761461441004,-500.0,0.00036459,15]
[392424635,1761461441013,-500.0,0.00036459,15]
[392424636,1761461441022,-500.0,0.00036459,15]
[392424637,1761461441032,-500.0,0.00036459,15]
[392424638,1761461441041,-500.0,0.00036459,15]
[392424639,1761461441050,-508.16673188,0.00036459,15]
[392424640,1761461441059,-500.0,0.00036459,15]
[392424641,1761461441068,-500.0,0.00036459,15]
[392424642,1761461441078,-500.0,0.00036459,15]
[392424643,1761461441088,-252.8837132,0.0003646,2]
[392424644,1761461441098,-811.28735621,0.00036461,2]
[392424645,1761461441107,-811.28735621,0.00036463,2]
[392424646,1761461441117,-811.28735621,0.00036466,2]
[392424647,1761461441126,-733.33333334,0.00036468,2]
[392424648,1761461441140,-197.43449673,0.00036468,2]
[392424649,1761461441149,-252.8837132,0.00036468,2]
[392424650,1761461441160,-811.28735621,0.00036468,2]
[392424651,1761461441169,-4841.86746534,0.00036468,2]
[392424652,1761461441179,-3294.54181311,0.0003649,4]
[392424653,1761461441188,-4309.7115056,0.00036498,2]
[392424654,1761461441197,-245.38077064,0.00036499,15]
[392424655,1761461441206,-859.44,0.00036499,14]
[392424656,1761461441215,-500.0,0.00036499,9]
[392424657,1761461441225,-436.1705965,0.00036499,9]
[392424658,1761461441235,-500.0,0.00036499,9]
[392424659,1761461441245,-500.0,0.00036499,9]
[392424660,1761461441256,-500.0,0.00036499,9]
[392424661,1761461441266,-500.0,0.00036499,9]
[392424662,1761461441275,-500.0,0.00036499,9]
[392424663,1761461441285,-500.0,0.00036499,9]
[392424664,1761461441295,-500.0,0.00036499,9]
[392424665,1761461441304,-513.6398895,0.00036499,9]
[392424666,1761461441313,-500.0,0.00036499,9]
[392424667,1761461441323,-500.0,0.00036499,9]
[392424668,1761461441332,-500.0,0.00036499,9]
[392424669,1761461441341,-500.0,0.00036499,9]
[392424670,1761461441351,-500.0,0.00036499,9]
[392424671,1761461441360,-500.0,0.00036499,9]
[392424672,1761461441369,-500.0,0.00036499,9]
[392424673,1761461441378,-500.0,0.00036499,9]
[392424674,1761461441387,-500.0,0.00036499,9]
[392424675,1761461441397,-500.0,0.00036499,9]
[392424676,1761461441405,-500.0,0.00036499,9]
[392424677,1761461441414,-500.0,0.00036499,9]
[392424678,1761461441423,-500.0,0.00036499,2]
[392424679,1761461441432,-500.0,0.00036499,9]
[392424680,1761461441442,-500.0,0.00036499,9]
[392424681,1761461441451,-500.0,0.00036499,9]
[392424682,1761461441461,-500.0,0.00036499,9]
[392424683,1761461441470,-500.0,0.00036499,9]
[392424684,1761461441479,-500.0,0.00036499,9]
[392424685,1761461441488,-500.0,0.00036499,9]
[392424686,1761461441497,-500.0,0.00036499,9]
[392424687,1761461441506,-500.0,0.00036499,9]
[392424688,1761461441515,-500.0,0.00036499,9]
[392424689,1761461441524,-500.0,0.00036499,9]
[392424690,1761461441533,-500.0,0.00036499,9]
[392424691,1761461441542,-500.0,0.00036499,9]
[392424692,1761461441551,-500.0,0.00036499,9]
[392424693,1761461441561,-500.0,0.00036499,9]
[392424694,1761461441571,-500.0,0.00036499,9]
[392424695,1761461441580,-500.0,0.00036499,9]
[392424696,1761461441589,-556.33278869,0.00036499,9]
[392424697,1761461441598,-500.0,0.00036499,9]
[392424698,1761461441607,-500.0,0.00036499,9]
[392424699,1761461441616,-500.0,0.00036499,9]
[392424700,1761461441629,-642.26,0.00036499,9]
[392424701,1761461441638,-500.0,0.00036499,9]
[392424702,1761461441647,-500.0,0.00036499,9]
[392424703,1761461441656,-500.0,0.00036499,7]
[392424704,1761461441665,-500.0,0.00036499,9]
[392424705,1761461441674,-500.0,0.00036499,9]
[392424706,1761461441683,-500.0,0.00036499,9]
[392424707,1761461441696,-651.2,0.00036499,2]
[392424708,1761461441705,-500.0,0.00036499,2]
[392424709,1761461441714,-568.48260373,0.00036499,9]
[392424710,1761461441722,-500.0,0.00036499,9]
[392424711,1761461441731,-325.24388322,0.00036499,9]
[392424712,1761461441741,-500.0,0.00036499,9]
[392424713,1761461441750,-303.29647545,0.00036499,9]
[392424714,1761461441759,-500.0,0.00036499,9]
[392424715,1761461441768,-538.75951064,0.00036499,9]
[392424716,1761461441777,-500.0,0.00036499,9]
[392424717,1761461441786,-500.0,0.00036499,9]
[392424718,1761461441795,-500.0,0.00036499,9]
[392424719,1761461441803,-542.91966852,0.00036499,9]
[392424720,1761461441813,-500.0,0.00036499,9]
[392424721,1761461441822,-500.0,0.00036499,9]
[392424722,1761461441831,-500.0,0.00036499,9]
[392424723,1761461441840,-500.0,0.00036499,9]
[392424724,1761461441850,-615.24516226,0.00036499,9]
[392424725,1761461441859,-500.0,0.00036499,9]
[392424726,1761461441869,-187.00437377,0.00036499,9]
[392424727,1761461441879,-500.0,0.00036499,9]
[392424728,1761461441889,-489.8736009,0.00036499,9]
[392424729,1761461441898,-500.0,0.00036499,9]
[392424730,1761461441907,-504.73647707,0.00036499,9]
[392424731,1761461441919,-500.0,0.00036499,9]
[392424732,1761461441930,-500.0,0.00036499,9]
[392424733,1761461441939,-500.0,0.00036499,9]
[392424734,1761461441951,-231.60827316,0.00036499,9]
[392424735,1761461441961,-500.0,0.00036499,9]
[392424736,1761461441970,-500.0,0.00036499,9]
[392424737,1761461441979,-500.0,0.00036499,9]
[392424738,1761461441988,-500.0,0.00036499,9]
[392424739,1761461441997,-500.0,0.00036499,9]
[392424740,1761461442006,-500.0,0.00036499,9]
[392424741,1761461442015,-554.51,0.00036499,9]
[392424742,1761461442024,-500.0,0.00036499,9]
[392424743,1761461442033,-500.0,0.00036499,9]
[392424744,1761461442043,-500.0,0.00036499,9]
[392424745,1761461442052,-215.0,0.000365,17]
[392424746,1761461442062,-238113.36138362,0.000365,2]
[392424747,1761461442071,-7094.25765266,0.000365,2]
[392424748,1761461442079,-263.56433619,0.00036513,2]
[392424749,1761461442089,-150.0,0.00036513,2]
[392424750,1761461442098,-506.00199717,0.00036513,2]
[392424751,1761461442107,-224.89291115,0.00036513,2]
[392424752,1761461442117,-508.2799414,0.00036513,2]
[392424753,1761461442126,-150.0,0.00036513,2]
[392424754,1761461442136,-150.0,0.00036513,2]
[392424755,1761461442145,-500.0,0.00036513,2]
[392424756,1761461442154,-150.0,0.00036513,2]
[392424757,1761461442163,-150.0,0.00036513,2]
[392424758,1761461442173,-150.0,0.00036513,2]
[392424759,1761461442182,-602.77401703,0.00036513,2]
[392424760,1761461442191,-4392.72241748,0.00036537,4]
[392424761,1761461442202,-14276.3478568,0.00036537,4]
[392424762,1761461442211,-197.05972259,0.00036541,4]
[392424763,1761461442356,-2196.36120874,0.00036547,4]
[392424764,1761461442366,-30939.51727,0.00036548,4]
[392424765,1761461442375,-393.53,0.00036556,5]
[392424766,1761461442385,-500.0,0.00036556,9]
[392424767,1761461442395,-500.0,0.00036556,7]
[392424768,1761461442403,-500.0,0.00036557,9]
[392424769,1761461442412,-500.0,0.00036557,9]
[392424770,1761461442421,-232.32231663,0.00036557,9]
[392424771,1761461442430,-500.0,0.00036557,9]
[392424772,1761461442439,-500.0,0.00036557,9]
[392424773,1761461442447,-295.75228844,0.00036557,2]
[392424774,1761461442456,-500.0,0.00036557,9]
[392424775,1761461442466,-500.0,0.00036557,2]
[392424776,1761461442474,-500.0,0.00036557,9]
[392424777,1761461442483,-500.0,0.00036557,9]
[392424778,1761461442492,-500.0,0.00036557,2]
[392424779,1761461442501,-500.0,0.00036557,9]
[392424780,1761461442511,-500.0,0.00036557,9]
[392424781,1761461442520,-500.0,0.00036557,9]
[392424782,1761461442529,-500.0,0.00036557,9]
[392424783,1761461442538,-500.0,0.00036557,9]
[392424784,1761461442547,-500.0,0.00036557,9]
[392424785,1761461442555,-500.0,0.00036557,9]
[392424786,1761461442564,-500.0,0.00036557,9]
[392424787,1761461442572,-500.0,0.00036557,9]
[392424788,1761461442582,-500.0,0.00036557,9]
[392424789,1761461442593,-500.0,0.00036557,9]
[392424790,1761461442602,-586.15581238,0.00036557,9]
[392424791,1761461442611,-500.0,0.00036557,9]
[392424792,1761461442624,-587.66425738,0.00036557,9]
[392424793,1761461442633,-500.0,0.00036557,9]
[392424794,1761461442642,-500.0,0.00036557,9]
[392424795,1761461442651,-500.0,0.00036557,9]
[392424796,1761461442661,-500.0,0.00036557,9]
[392424797,1761461442670,-500.0,0.00036557,9]
[392424798,1761461442679,-500.0,0.00036557,9]
[392424799,1761461442689,-500.0,0.00036557,9]
[392424800,1761461442703,-500.0,0.00036557,9]
[392424801,1761461442712,-500.0,0.00036557,9]
[392424802,1761461442723,-500.0,0.00036557,9]
[392424803,1761461442733,-500.0,0.00036557,9]
[392424804,1761461442744,-500.0,0.00036557,9]
[392424805,1761461442755,-500.0,0.00036557,9]
[392424806,1761461442766,-300.0,0.00036557,9]
[392424807,1761461442775,-500.0,0.00036557,9]
[392424808,1761461442784,-589.3252297,0.00036557,9]
[392424809,1761461442792,-500.0,0.00036557,9]
[392424810,1761461442801,-486.04759831,0.00036557,9]
[392424811,1761461442810,-500.0,0.00036557,9]
[392424812,1761461442819,-276.75866433,0.00036557,9]
[392424813,1761461442828,-500.0,0.00036557,9]
[392424814,1761461442838,-500.0,0.00036557,9]
[392424815,1761461442847,-500.0,0.00036557,9]
[392424816,1761461442856,-500.0,0.00036557,9]
[392424817,1761461442865,-46409.2759049,0.00036557,4]
[392424818,1761461442875,-143845.21820734,0.00036558,4]
[392424819,1761461442913,-5695.78193066,0.00036558,4]
[392424820,1761461442922,-153.52,0.00036558,2]
[392424821,1761461442931,-94.37090147,0.00036564,2]
[392424822,1761461443178,-94.98734241,0.00036564,2]
[392424825,1761461446139,-500.0,0.00036499,9]
[392424826,1761461446149,-81.31928405,0.00036564,2]
[392424841,1761461761682,5000.0,0.00036882,50]
[392424854,1761462467304,184.81,0.00013699,2]
[392424855,1761462467535,184.81,0.00020187,2]
[392424864,1761462632139,-184.81,0.00026676,2]
[392424866,1761462632149,-219.84060578,0.00031507,120]
[392424868,1761462632243,-260.64664709,0.00031507,120]
[392424869,1761462632370,-101.51274713,0.00031507,120]
[392424870,1761462632379,-853.894916,0.00031951,2]
[392424871,1761462632389,-500.0,0.00031951,2]
[392424872,1761462632398,-294.82694386,0.00031951,2]
[392424873,1761462632408,-853.894916,0.000331,30]
[392424874,1761462632417,-152.0,0.00033163,3]
[392424875,1761462632427,-184.81,0.00033165,2]
[392424876,1761462632436,-853.894916,0.00033172,2]
[392424877,1761462632445,-209.102,0.00033907,2]
[392424878,1761462632455,-209.409,0.00033907,2]
[392424879,1761462632464,-250.0,0.00033907,2]
[392424880,1761462632473,-218.073,0.00033907,2]
[392424881,1761462632487,-853.894916,0.00034135,30]
[392424882,1761462632496,-853.894916,0.00034392,2]
[392424883,1761462632505,-152.0,0.00034692,4]
[392424884,1761462632515,-300.0,0.0003476,7]
[392424885,1761462632525,-334.6106892,0.00034923,7]
[392424886,1761462632535,-500.0,0.00034923,7]
[392424887,1761462632544,-1000.0,0.00035026,2]
[392424888,1761462632559,-2081.46,0.00035097,2]
[392424889,1761462632569,-853.894916,0.0003517,30]
[392424890,1761462632578,-157.42,0.00035364,2]
[392424891,1761462632587,-1234.27884355,0.00035469,2]
[392424892,1761462632597,-171.45,0.00035506,2]
[392424893,1761462632606,-300.0,0.00035507,4]
[392424894,1761462632615,-853.894916,0.00035613,2]
[392424895,1761462632624,-150.0,0.00035613,2]
[392424896,1761462632634,-209.29702274,0.00035616,2]
[392424897,1761462632642,-311.0,0.00035945,5]
[392424898,1761462632651,-166.66,0.00035984,2]
[392424899,1761462632666,-171.76653944,0.00035989,15]
[392424900,1761462632675,-612.01852576,0.00035989,15]
[392424901,1761462632684,-500.0,0.00035989,9]
[392424903,1761462632694,-500.0,0.00035989,9]
[392424904,1761462632703,-14135.40400607,0.0003599,3]
[392424913,1761462637294,5000.0,0.00036881,50]
[392424916,1761462638184,-500.0,0.00035989,9]
[392424917,1761462638193,-2012.7013878,0.0003599,3]
[392424943,1761462640392,-250.41162714,0.0003599,3]
[392424945,1761462640403,-5581.1667407,0.0003599,3]
[392424946,1761462640415,-883.60236109,0.0003599,3]
[392424947,1761462640424,-504.58881967,0.0003599,3]
[392424948,1761462640438,-1228.7950839,0.0003599,3]
[392424949,1761462640604,-199516.46623143,0.0003599,3]
[392424950,1761462640613,-89151.78634422,0.00036,32]
[392424951,1761462640623,-255242.10119243,0.00036,2]
[392424952,1761462643416,-2537.23979864,0.00036,2]
[392425019,1761462646238,-2754.32993077,0.00036,2]
[392425020,1761462646359,-366.87404225,0.00035989,9]
[392425021,1761462646388,-133.12595775,0.00035989,9]
[392425022,1761462646397,-963.23283957,0.00036,2]
[392425204,1761462715612,4460.93610812,0.00031,120]
[392425216,1761462907657,250.0,0.00017,2]
[392425217,1761462908757,300.0,0.00019,2]
[392425234,1761463508075,90922.81924314,0.00015,2]
[392425236,1761463525199,2958.60010857,0.000175,2]
[392425246,1761463619353,5000.00543724,0.000162,5]
[392425253,1761463674294,6295.03169231,0.00018,2]
[392425262,1761463720293,2212.97384643,0.00015807,2]
[392425263,1761463722295,4762.58597833,0.0002,2]
[392425282,1761463832499,-500.0,0.00024932,2]
[392425283,1761463832509,-1000.0,0.00031402,2]
[392425284,1761463832519,-287.926675,0.00032,2]
[392425285,1761463832528,-158.977639,0.00032,2]
[392425286,1761463832538,-238.299889,0.00032,2]
[392425287,1761463832548,-455.410621,0.00032,2]
[392425288,1761463832564,-705.59922166,0.00032,2]
[392425360,1761463840614,-1981.03759022,0.00032,2]
[392425361,1761463840773,-387.38299854,0.00032,2]
[392425362,1761463840823,-6222.43920281,0.00032,2]
[392425363,1761463840833,-177.76,0.00032428,2]
[392425364,1761463840842,-724.83242229,0.00032785,2]
[392425365,1761463840851,-724.83242229,0.00032869,2]
[392425366,1761463840860,-724.83242229,0.00032964,2]
[392425367,1761463840879,-1600.0,0.0003297,2]
[392425368,1761463840889,-287.926675,0.00033208,2]
[392425369,1761463840899,-158.977639,0.00033208,2]
[392425370,1761463840909,-158.977639,0.00033208,2]
[392425371,1761463840919,-238.299889,0.00033208,2]
[392425372,1761463840928,-455.410621,0.00033208,2]
[392425373,1761463840938,-1000.0,0.0003327,2]
[392425374,1761463840947,-810.68557068,0.000337,2]
[392425375,1761463840956,-319.0,0.00034,2]
[392425376,1761463840966,-163.73972323,0.00034027,30]
[392425377,1761463840975,-1000.0,0.0003407,2]
[392425378,1761463840985,-150.937,0.00034147,2]
[392425379,1761463840995,-572.0,0.00034208,2]
[392425380,1761463841004,-819.0,0.00034208,2]
[392425381,1761463841013,-558.0,0.00034208,2]
[392425382,1761463841023,-6585.0,0.00034208,2]
[392425383,1761463841033,-1138.932,0.00034208,2]
[392425384,1761463841043,-3489.0,0.00034208,2]
[392425385,1761463841052,-583.957,0.00034208,2]
[392425386,1761463841061,-163.73972323,0.00034384,30]
[392425387,1761463841071,-287.926675,0.00034417,2]
[392425388,1761463841080,-158.977639,0.00034417,2]
[392425389,1761463841090,-238.299889,0.00034417,2]
[392425390,1761463841099,-158.977639,0.00034417,2]
[392425391,1761463841109,-455.410621,0.00034417,2]
[392425392,1761463841118,-250.0,0.00034483,2]
[392425393,1761463841128,-168.0,0.00034484,2]
[392425394,1761463841137,-173.49,0.00034648,2]
[392425395,1761463841146,-168.0,0.00034675,2]
[392425397,1761463841155,-350.63,0.00034755,30]
[392425398,1761463841166,-163.73972323,0.00034767,30]
[392425399,1761463841176,-500.0,0.00034833,7]
[392425400,1761463841192,-500.0,0.00034833,7]
[392425401,1761463841201,-500.0,0.00034833,7]
[392425402,1761463841211,-500.0,0.00034833,7]
[392425403,1761463841221,-500.0,0.00034833,7]
[392425404,1761463841231,-500.0,0.00034833,7]
[392425405,1761463841244,-457.35005869,0.00034833,7]
[392425406,1761463841253,-500.0,0.00034833,7]
[392425407,1761463841262,-500.0,0.00034833,7]
[392425408,1761463841271,-500.0,0.00034833,7]
[392425409,1761463841281,-14604.29,0.00034834,2]
[392425410,1761463841290,-500.0,0.00034923,7]
[392425411,1761463841300,-500.0,0.00034923,7]
[392425412,1761463841309,-163.73972323,0.00035151,30]
[392425413,1761463841319,-242.32,0.0003519,2]
[392425414,1761463841328,-168.0,0.0003538,2]
[392425415,1761463841337,-1885.70378875,0.00035469,2]
[392425416,1761463841346,-216.86419977,0.00035616,2]
[392425417,1761463841356,-164.821534,0.00035625,2]
[392425418,1761463841365,-287.926675,0.00035625,2]
[392425419,1761463841375,-158.977639,0.00035625,2]
[392425420,1761463841384,-164.332757,0.00035625,2]
[392425421,1761463841394,-238.299889,0.00035625,2]
[392425422,1761463841404,-158.977639,0.00035625,2]
[392425423,1761463841416,-455.410621,0.00035625,2]
[392425424,1761463841425,-500.0,0.0003569,2]
[392425425,1761463841434,-2137.9181,0.00035889,2]
[392425426,1761463841443,-380.058,0.0003589,43]
[392425427,1761463841453,-187.57305535,0.0003589,2]
[392425428,1761463841462,-1622.57471244,0.0003589,2]
[392425429,1761463841471,-197.43449673,0.000359,2]
[392425430,1761463841481,-200.0,0.000359,13]
[392425431,1761463841491,-173.49,0.00035948,2]
[392425432,1761463841500,-278.44703,0.0003595,2]
[392425433,1761463841509,-150.0,0.00035952,15]
[392425434,1761463841518,-1622.57471242,0.00035954,2]